Cogmind - Beta 14 @@@ ROGUE MODE // 2025.03.08 @ 09:39:10 Player: winnking222 Result: Destroyed by BW-5PF(R) with Subdweller Laser Performance ------------- Evolutions (0) 0 Regions Visited (2) 400 Robots Destroyed (34) 170 Value Destroyed (687) 687 Prototype IDs (11) 220 Alien Tech Used (0) 0 Bonus (0) 0 TOTAL SCORE: 1477 Bonus ------- None Cogmind --------- Core Integrity 0/250 Matter 116/300 Energy 81/100 System Corruption 0% Temperature Cool (6) Movement Core (350) Ox6 Location -10/Subcaves Parts ------- > --- POWER (1) -------- Subdweller Power Source > --- PROPULSION (2) --- Subdweller Monowheel > --- UTILITY (2) ------ (None) > --- WEAPON (2) ------- Subdweller Beam Cannon Slug Cannon > --- INVENTORY (5) ---- Subdweller Power Source Gun Armor Battle Rifle Grenade Launcher Peak State ------------ > --- POWER ------------ Subdweller Power Source > --- PROPULSION ------- Aluminum Leg Subdweller Monowheel > --- UTILITY ---------- Medium Storage Unit Targeting Computer > --- WEAPON ----------- Battle Rifle Slug Cannon > --- INVENTORY -------- Subdweller Power Source Large Matter Pod Subdweller Optics Gun Armor Scrap Shield Beam Cannon Grenade Launcher [Rating: 15] Favorites ----------- Power Subdweller Power Source Engine Subdweller Power Source Propulsion Aluminum Leg Treads Light Treads Leg Aluminum Leg Wheel Subdweller Monowheel Utility Medium Storage Unit Device Seismic Detector Storage Medium Storage Unit Processor Targeting Computer Protection Scrap Shield Weapon Grenade Launcher Energy Gun Medium Laser Energy Cannon Beam Cannon Ballistic Gun Battle Rifle Ballistic Cannon Slug Cannon Launcher Grenade Launcher Build | -11 -10 -10 ------- Run | Yrd Mat Sub Slots Evolved . | . . . Power . | . . . Propulsion . | . . . Utility . | . . . Weapon . | . . . Parts Attached 27 | 7 6 14 Power 4 | 1 . 3 Engine 4 | 1 . 3 Core . | . . . Reactor . | . . . Propulsion 6 | 2 2 2 Treads 2 | 2 . . Leg 3 | . 2 1 Wheel 1 | . . 1 Hover . | . . . Flight . | . . . Utility 6 | 2 1 3 Device 2 | 1 . 1 Storage 2 | 1 1 . Processor 1 | . . 1 Hackware . | . . . Protection 1 | . . 1 Artifact . | . . . Weapon 11 | 2 3 6 Energy Gun 3 | 2 1 . Energy Cannon 3 | . 1 2 Ballistic Gun 1 | . . 1 Ballistic Cannon 2 | . . 2 Launcher 2 | . 1 1 Special Weapon . | . . . Impact Weapon . | . . . Slashing Weapon . | . . . Piercing Weapon . | . . . Special Melee Weapon . | . . . Unidentified Prototypes . | . . . Parts Lost 4 | . . 4 Power 1 | . . 1 Propulsion 2 | . . 2 Utility 1 | . . 1 Weapon . | . . . Highest Loss Streak 1 | . . 1 To Critical Strikes . | . . . Average Slot Usage (%) 96 | . 99 93 Engine 13 | . 14 13 Treads 2 | . 5 . Leg 19 | . 22 18 Wheel 4 | . . 7 Device 7 | . 14 2 Storage 12 | . 14 11 Processor 4 | . . 7 Protection 1 | . . 2 Energy Gun 6 | . 14 . Energy Cannon 5 | . 11 . Ballistic Gun 3 | . . 5 Ballistic Cannon 5 | . . 9 Launcher 7 | . 1 11 Peak Build Rating 15 | 7 7 15 Average Rating 10 | 5 6 12 On Entrance 4 | . 7 7 Naked Turns . | . . . Heaviest Build 38 | 14 21 38 Greatest Support 40 | 40 40 20 Greatest Overweight (x) 12 | . 1 12 Average Overweight (x) 1 | . . 1 Largest Inventory Capacity 10 | 8 10 10 Average Capacity 9 | 7 9 9 Most Carried 10 | 5 9 10 Average Carried 7 | 2 6 8 Final Capacity 10 | 8 10 5 Final Carried 9 | 3 9 4 Class Distribution -------------------- 91% | Mutant 8% | Subdweller-Mutant Dominant Class ---------------- Mutant | -10/Materials Mutant | -10/Subcaves Resources | -11 -10 -10 ----------- Run | Yrd Mat Sub Matter Collected 1031 | 270 256 505 Remotely . | . . . Salvage Created 900 | 75 643 182 Parts 65 | 10 42 13 Haulers Intercepted 2 | . 2 . Recyclers Shooed 2 | . 2 . Parts Field Recycled . | . . . Retrieved Matter . | . . . Parts Self-Destructed 15 | . . 15 Prevented . | . . . Kills | -11 -10 -10 ------- Run | Yrd Mat Sub Combat Hostiles Destroyed 19 | . 9 10 Guns 6 | . 5 1 Cannons 5 | . 3 2 AOE 8 | . 1 7 Classes Destroyed 8 | 1 5 2 Tunneler 5 | 3 2 . Hauler 2 | . 2 . Recycler 3 | . 3 . Turret 2 | . . 2 Watcher 3 | . 3 . Swarmer 9 | . 5 4 Grunt 4 | . 4 . Subdweller 6 | . . 6 Best Kill Streak 4 | 2 3 4 Combat Bots Only 4 | . 2 4 Max Kills in Single Turn 2 | 1 2 2 Gunslinging . | . . . Exploded 2 | . 1 2 Melee . | . . . Uniques/NPCs Destroyed . | . . . Combat | -11 -10 -10 -------- Run | Yrd Mat Sub Hostile Shots Fired 157 | . 66 91 Missed 52 | . 20 32 Damage Taken 1249 | . 479 770 Core 267 | . 107 160 Absorbed by Shields . | . . . Core Remaining (%) 100 | 100 . . Volleys Fired 160 | 6 94 60 Largest 2 | 2 2 2 Hottest 128 | 80 110 128 Shots Fired 276 | 12 174 90 Gun 114 | 12 80 22 Cannon 131 | . 89 42 Launcher 31 | . 5 26 Special . | . . . Kinetic 61 | . . 61 Thermal 178 | 6 169 3 Explosive 31 | . 5 26 Electromagnetic 6 | 6 . . Robot Hit Streak 8 | 3 6 8 Robot Miss Streak 8 | 2 8 2 Penetration Max . | . . . Secondary Targets . | . . . Shots Hit Robots 103 | 6 59 38 Core Hits 49 | 3 26 20 Critical Kills 1 | . . 1 Critical Parts Destroyed . | . . . Critical Strikes 4 | . 2 2 Burn 2 | . 2 . Destroy 2 | . . 2 Melee Attacks . | . . . Impact . | . . . Slashing . | . . . Piercing . | . . . Sneak Attacks . | . . . Combat Hostiles . | . . . Follow-up Attacks . | . . . Damage Inflicted 2795 | 71 1056 1668 Guns 590 | 71 373 146 Cannons 871 | . 526 345 Explosions 1328 | . 151 1177 Melee . | . . . Ramming 6 | . 6 . Kinetic 452 | . . 452 Thermal 959 | 21 899 39 Explosive 1328 | . 151 1177 Electromagnetic 50 | 50 . . Impact . | . . . Slashing . | . . . Piercing . | . . . Highest Corruption . | . . . Average Corruption . | . . . Corruption Purged . | . . . Corruption Blocked . | . . . Overload Shots . | . . . Overflow Damage 22 | . 8 14 Projectiles 22 | . 8 14 Explosions . | . . . Melee . | . . . Knockbacks . | . . . Impact . | . . . Kinetic . | . . . Secondary . | . . . Self-Inflicted Damage 92 | . 18 74 Shots 6 | . 1 5 Rammed . | . . . Targets Rammed 2 | . 2 . Kicked 2 | . 2 . Crushed . | . . . Highest Temperature 401 | 54 401 16 Average Temperature 115 | 23 121 7 Received Heat Transfer 420 | . 150 270 Effects 2 | . 2 . Interference 2 | . 2 . Siege Activations . | . . . Robots Corrupted . | . . . Combat Hostiles . | . . . Parts Fried . | . . . Impact Corruptions . | . . . Robots Melted . | . . . Combat Hostiles . | . . . Parts Melted 6 | . 6 . Heat Transferred 2492 | 50 2368 74 Parts Sabotaged . | . . . Parts Stolen . | . . . Parts Stripped . | . . . Power Chain Reactions . | . . . Alert | -11 -10 -10 ------- Run | Yrd Mat Sub Peak Influence 180 | 15 180 . Initial 9 | . 9 . Average 44 | 5 48 . Maximum Alert Level . | . . . Low Security (%) 100 | 100 100 . Level 1 . | . . . Level 2 . | . . . Level 3 . | . . . Level 4 . | . . . Level 5 . | . . . High Security . | . . . Max Security . | . . . Squads Dispatched . | . . . Investigation . | . . . Extermination . | . . . Reinforcement . | . . . Assault . | . . . Garrison . | . . . Intercept . | . . . Searches Triggered . | . . . Construction Impeded . | . . . Haulers Reinforced . | . . . Active Scanning Responses . | . . . Cargo Convoy Interrupts . | . . . Stealth | -11 -10 -10 --------- Run | Yrd Mat Sub Distress Signals 1 | . 1 . Communications Jammed . | . . . Distress Signals . | . . . Times Spotted 37 | . 21 16 Peak Tracking Total 5 | . 5 4 Tactical Retreats 3 | . . 3 Traps | -11 -10 -10 ------- Run | Yrd Mat Sub Traps Triggered . | . . . Indirectly . | . . . Trap Hack Attempts . | . . . Triggered . | . . . Disarmed . | . . . Reprogrammed . | . . . Reused . | . . . Traps Extracted . | . . . Installed 1 | . . 1 Triggered . | . . . Most Traps Carried 1 | . . 1 Machines | -11 -10 -10 ---------- Run | Yrd Mat Sub Machines Disabled 7 | . 3 4 Max in Single Turn 3 | . 1 3 Machines Repaired . | . . . Machines Dismantled . | . . . Machines Sabotaged . | . . . Overloaded Fab Kills . | . . . Hacking | -11 -10 -10 --------- Run | Yrd Mat Sub Machines Accessed 6 | . 5 1 Terminals 4 | . 4 . Fabricators . | . . . Repair Stations . | . . . Recycling Units 1 | . 1 . Scanalyzers . | . . . Garrison Access . | . . . Total Hacks 19 | . 10 9 Successful 15 | . 6 9 Failed 4 | . 4 . Catastrophic . | . . . Database Lockouts . | . . . Manual . | . . . Terminals 6 | . 6 . Fabricators . | . . . Repair Stations . | . . . Recycling Units 4 | . 4 . Scanalyzers . | . . . Garrison Access . | . . . Terminal Hacks 14 | . 5 9 Record 8 | . . 8 Robot Analysis 1 | . 1 . Level Access Points 1 | . 1 . Emergency Access Points 1 | . 1 . Locate Traps 1 | . 1 . Hauler Manifests 1 | . 1 . Derelict Proto ID Bank 1 | . . 1 Fabricator Hacks . | . . . Repair Station Hacks . | . . . Recycling Unit Hacks 1 | . 1 . Report Inventory 1 | . 1 . Scanalyzer . | . . . Garrison Access Hacks . | . . . Unauthorized Hacks . | . . . Terminals . | . . . Fabricators . | . . . Repair Stations . | . . . Recycling Units . | . . . Scanalyzers . | . . . Garrison Access . | . . . Data Cores Recovered . | . . . Used . | . . . Hacking Detections 2 | . 2 . Full Trace Events 1 | . 1 . Feedback Events . | . . . Feedback Blocked . | . . . Robot Schematics Acquired . | . . . Robots Built . | . . . Authchips . | . . . Time . | . . . Total Robot Build Rating . | . . . Part Schematics Acquired . | . . . Parts Built . | . . . Authchips . | . . . Time . | . . . Total Part Build Rating . | . . . Parts Repaired . | . . . Time . | . . . Parts Recycled . | . . . Recycled Matter . | . . . Retrieved Matter . | . . . Retrieved Components . | . . . Parts Scanalyzed . | . . . Part Schematics Acquired . | . . . Parts Damaged . | . . . Bothacking | -11 -10 -10 ------------ Run | Yrd Mat Sub Used RIF Installer . | . . . Robots Hacked . | . . . Non-combat . | . . . Combat . | . . . Robot Hacks Applied . | . . . Relay Couplers Released . | . . . Fabnet Peak Effective % . | . . . Robots Rewired . | . . . Allies Hacked . | . . . Hacks Repelled . | . . . Allies | -11 -10 -10 -------- Run | Yrd Mat Sub Total Allies . | . . . Largest Group . | . . . Highest-Rated Group . | . . . Highest-Rated Ally . | . . . Total Orders . | . . . Ally Attacks . | . . . Total Damage . | . . . Kills . | . . . Allies Corrupted . | . . . Allies Melted . | . . . Intel | -11 -10 -10 ------- Run | Yrd Mat Sub Robot Analysis Total 1 | . 1 . Derelict Logs Recovered 2 | . . 2 Drone Launches . | . . . Drone Recoveries . | . . . Exploration | -11 -10 -10 ------------- Run | Yrd Mat Sub Turns Passed 4192 | 152 1698 2342 Spaces Moved 1971 | 83 741 1147 Core 52 | 13 . 39 Treads 226 | 70 156 . Legs 1305 | . 585 720 Wheels 388 | . . 388 Hover . | . . . Flight . | . . . Fastest Speed 50 | 50 160 110 Average Speed 182 | 142 183 184 Slowest Speed 650 | 160 190 650 Overloaded Moves . | . . . Propulsion Burnouts . | . . . Robots Hopped . | . . . Cave-ins Triggered . | . . . Exploration Rate (%) 48 | 5 87 53 Regions Visited 2 Branch Regions 1 Pre-discovered Areas 1 | . . 1 Known Exits Taken . | . . . Unknown Exits Taken 2 | 1 1 . Scrap Searched . | . . . Spaces Dug 8 | . . 8 Terrain Destroyed 129 | . 20 109 Melee . | . . . Projectile 12 | . . 12 AOE 117 | . 20 97 Terrain Rammed . | . . . Walls Destroyed . | . . . Machines Disabled . | . . . Actions | -11 -10 -10 --------- Run | Yrd Mat Sub Total 2292 | 104 902 1286 Wait 80 | . 48 32 Move 1969 | 82 740 1147 Hop . | . . . Pick Up 31 | 9 9 13 Fast Attach 2 | 1 . 1 Attach 11 | 6 1 4 Detach . | . . . Swap 14 | . 5 9 Drop 16 | . 3 13 Fire 160 | 6 94 60 Melee . | . . . Ram . | . . . Kick 2 | . 2 . Crush . | . . . Escape Stasis . | . . . Rewire 5 | . . 5 Trap 1 | . . 1 Miscellaneous 1 | . . 1 Route ------- -11/Scrapyard -10/Materials (discovered 6 exits: *Mat x3 / [*Min x2] / *Sub) -10/Subcaves (discovered 3 exits: [*Mat x2] / [*Rec]) History --------- Turn | Location | Event 11 | -11/Scrapyard | Discovered new exit (range 14) 153 | -11/Scrapyard | Entered Materials 153 | -10/Materials | Discovered new exit (range 15) 238 | -10/Materials | Discovered new exit (range 5) 302 | -10/Materials | Build established: Mutant 371 | -10/Materials | Identified exit to Materials 433 | -10/Materials | Discovered new exit (range 15) 1772 | -10/Materials | Discovered new exit (range 6) 1851 | -10/Materials | Entered Subcaves 1881 | -10/Subcaves | Learned location of Zion (-6) 1881 | -10/Subcaves | Met a Zionite searching for "candidates" 1983 | -10/Subcaves | Discovered new exit (range 12) 2003 | -10/Subcaves | Shifting Twisted Machinery released Slug Cannon 2017 | -10/Subcaves | Shifting Twisted Machinery released Sub. Monowheel 2181 | -10/Subcaves | Core integrity fell below 50% 2418 | -10/Subcaves | Visited 4L-MR0's lab 2440 | -10/Subcaves | Found Gun Armor 3027 | -10/Subcaves | Learned Materials security intel 3219 | -10/Subcaves | A swath of the cavern ceiling suddenly collapsed 3371 | -10/Subcaves | Discovered new exit (range 10) 3717 | -10/Subcaves | Learned Materials garrison access intel 3787 | -10/Subcaves | Core integrity fell below 20% 3929 | -10/Subcaves | Discovered new exit (range 10) 4120 | -10/Subcaves | Build established: Subdweller-Mutant 4193 | -10/Subcaves | Destroyed by BW-5PF(R) with Subdweller Laser Last Messages --------------- 03929_ EXIT=FOUND 03932_ Machine disabled. 03941_ Autobeam Turret suffers critical hit (Destroy). 03941_ Autobeam Turret destroyed. 03942_ Subatomizers dissect the Sub. Optics, destroying it. 03947_ Aluminum Leg destroyed. 03950_ Destroyed Autobeam. 03950_ Autobeam Turret destroyed. 03953_ Acquired 2 matter. 03959_ Acquired 3 matter. 03997_ Acquired 4 matter. 04007_ The unstable cave ceiling collapses. 04019_ Acquired 7 matter. 04037_ Sub. Power Source shoots sparks and powers down. 04052_ The unstable cave ceiling collapses. 04063_ Acquired 8 matter. 04118_ Attempting to rewire TO-I5Y(R). 04118_ TO-I5Y(R) is broken beyond repair. 04169_ Scrap Shield destroyed. 07-C09(R) emerges from concealment. Map ----- +----------------------------------------------------+ | ?????????????????????????????????????????????????? | | ?????????????????????????????????????????????????? | | ?????????????????????????????????????????????????? | | ?????????????????????????????????????????????????? | | ?????????????????????????????????????????????????? | | ?????????????????????????????????????????????????? | | ?????????????????????????????????????????????????? | | ?????????????????????????????????????????????????? | | ?????????????????????????????????????????????????? | | ?????????????????????????????????????????????????? | | ??????????##########?????????????????????????????? | | ??????????# ##?????###????????????????????? | | ??????????## <# #????? ####?? #?????????????? | | ??????????# #?###? % ## #?????????????? | | ?????????## ### ##% ^ ??????????????? | | ?????????# ## ^ ????????????????? | | ?????????## ## #??????????????????? | | ??????????# ## #??????????????????? | | ??????????# "## #?%###????????????????? | | ??????????#### ### #? ##???????????????? | | ?????????## ### # #?# ##??????????????? | | ?????????# ^### ### #??????????????? | | ?????????# ##### #??????????????? | | ?????????# ###?### #??????????????? | | ????# # #####R < # #??????????????? | | ????## % %### # ##@ ^ <<#??????????????? | | ?????### ###??## ! R ##??????????????? | | ???????###?????# ! ## ! #??????????????? | | ???????????????## ## #### # ##??????????????? | | ????????????????#######??# # #??????????????? | | ?????????????????????????##### #??????????????? | | ?????????????????????????????## #??????????????? | | ?????????????????????????????# #??????????????? | | ?????????????????????????????# #??????????????? | | ?????????????????????????????## ##??????????????? | | ??????????????????????????????# #??????????????? | | ??????????????????????????????# ##??????????????? | | ??????????????????????????????# #???????????????? | | ?????????????????????????????## #???????????????? | | ?????????????????????????????# #???????????????? | | ?????????????????????????????# #???????????????? | | ?????????????????????????????## #?????????????### | | #????????????????????????????# ##??????####### | | ##?????????????????????????### #""###????# ## | | ##??????????????????####### """#"""#????# | | #####?????#####???## "#""""#"###??# | | #????## #??## ###""#""#"#"??# | | ###### #??# "##""""####"??###### | | #??# ####"""###""##""###????## | | #??# ###?#"#"""#"" "#""""######## | +----------------------------------------------------+ Best States ------------- Heat Dissipation 25 Energy Generation 15 Energy Capacity 250 Matter Stores 300 Matter Capacity 300 Sight Range 21 Terrain Scan Density 10 Armor Coverage 800 Evasion (%) 50 Targeting Accuracy 5 Recoil Reduction 2 Item Schematics ----------------- None Robot Schematics ------------------ None Fabricated ------------ Nothing Alien Tech Used ----------------- None Achievements -------------- None Challenges ------------ None Game ------ Seed VisualTrackerFlamer Manual? 0 Play Time 00:25:15 Cumulative 32.6 hours Start 2025.03.08 @ 09:16:52 End 2025.03.08 @ 09:39:10 Sessions 1 Manual Loads 0 Difficulty Rogue Special Mode None Game No. 59 Rogue 59 Adventurer 0 Explorer 0 Win Type - Total 0 Types 0/0/0/0/0/0/0/0/0 Lore% 34 Gallery% 35 Achievement% 30 Wizard Run 0 Options --------- Layout 0 ASCII 0 Keyboard 0 Movement Mouse Keybinds 0 Fullscreen 1 Font 16/SmallcapsGlow Map View 75x55 Zoom Use 0% Tactical HUD 1 Map Filters NONE Filters NONE Steam 1 RUN: a4573f54-487d-4d29-846b-62945fca6cb8